fUST/lending_fUST_20250521
["ID","MTS","AMOUNT","RATE_DAILY","PERIOD"]
[361844626,1747833038761,-453.34158081,0.00021229,2]
[361844627,1747833038771,-500.0,0.00021229,2]
[361844628,1747833038780,-500.0,0.00021229,2]
[361844629,1747833038790,-500.0,0.00021229,2]
[361844630,1747833038800,-500.0,0.00021229,2]
[361844631,1747833038810,-500.0,0.00021229,2]
[361844632,1747833038819,-3000.0,0.0002123,2]
[361844633,1747833038829,-3000.0,0.0002124,2]
[361844634,1747833038839,-3000.0,0.0002125,2]
[361844635,1747833038849,-3000.0,0.0002126,2]
[361844636,1747833038859,-5130.124935,0.0002127,2]
[361844637,1747833038869,-500.0,0.00021327,2]
[361844638,1747833038878,-180.46160757,0.00021568,2]
[361844639,1747833038888,-150.0,0.0002186,2]
[361844640,1747833038898,-207.5257605,0.000219,6]
[361844641,1747833038908,-430.0,0.00021917,2]
[361844642,1747833038917,-500.0,0.00021918,2]
[361844643,1747833038927,-500.0,0.00021918,2]
[361844644,1747833038936,-500.0,0.00021918,2]
[361844645,1747833038947,-500.0,0.00021918,2]
[361844646,1747833038956,-500.0,0.00021918,2]
[361844647,1747833038966,-500.0,0.00021918,2]
[361844648,1747833038975,-500.0,0.00021918,2]
[361844649,1747833038985,-500.0,0.00021918,2]
[361844650,1747833038995,-516.87331166,0.00021918,2]
[361844651,1747833039005,-500.0,0.00021918,2]
[361844652,1747833039014,-500.0,0.00021918,2]
[361844653,1747833039024,-500.0,0.00021918,2]
[361844654,1747833039034,-500.0,0.00021918,2]
[361844655,1747833039044,-500.0,0.00021918,2]
[361844656,1747833039054,-1000.0,0.00022,22]
[361844657,1747833039064,-430.0,0.00022191,2]
[361844658,1747833039073,-430.0,0.00022465,2]
[361844659,1747833039084,-300.0,0.00022739,2]
[361844660,1747833039093,-300.0,0.00022739,2]
[361844661,1747833039103,-430.0,0.00022739,2]
[361844662,1747833039112,-160.0,0.00022786,2]
[361844663,1747833039122,-300.0,0.00022807,2]
[361844664,1747833039132,-207.5257605,0.000229,8]
[361844665,1747833039141,-422.71322487,0.0002296,2]
[361844666,1747833039150,-1282.09,0.00023,2]
[361844667,1747833039160,-500.0,0.00023,30]
[361844668,1747833039169,-1000.0,0.00023,23]
[361844669,1747833039178,-562.28190819,0.00023004,8]
[361844670,1747833039187,-87.16591649,0.00023013,2]
[361844671,1747833039200,-342.83408351,0.00023013,2]
[361844672,1747833039210,-300.0,0.00023081,2]
[361844673,1747833039219,-430.0,0.00023287,2]
[361844674,1747833039228,-1038.06653729,0.00023287,2]
[361844675,1747833039239,-4041.66222974,0.00023287,2]
[361844676,1747833039251,-4877.08123297,0.00023287,2]
[361844677,1747833039260,-300.0,0.00023355,2]
[361844678,1747833039269,-500.0,0.00023519,2]
[361844679,1747833039278,-515.0344344,0.00023561,2]
[361844680,1747833039288,-695.24,0.00023563,7]
[361844681,1747833039297,-300.0,0.00023629,2]
[361844682,1747833039306,-695.24,0.00023663,4]
[361844683,1747833039315,-695.24,0.00023763,3]
[361844684,1747833039324,-695.24,0.00023863,4]
[361844685,1747833039334,-207.5257605,0.000239,10]
[361844686,1747833039343,-300.0,0.00023903,2]
[361844687,1747833039352,-695.24,0.00023963,2]
[361844688,1747833039362,-1000.0,0.00024,24]
[361844689,1747833039371,-186.0,0.00024,7]
[361844690,1747833039380,-695.24,0.00024063,5]
[361844691,1747833039389,-695.24,0.00024163,6]
[361844692,1747833039398,-300.0,0.00024177,2]
[361844693,1747833039408,-453.531613,0.00024263,3]
[361844694,1747833039419,-241.708387,0.00024263,3]
[361844695,1747833039429,-695.24,0.00024363,5]
[361844696,1747833039438,-300.0,0.00024451,2]
[361844697,1747833039447,-276.2116155,0.00024463,2]
[361844698,1747833039459,-419.0283845,0.00024463,2]
[361844699,1747833039469,-162.768674,0.000245,14]
[361844700,1747833039478,-695.24,0.00024563,5]
[361844701,1747833039487,-536.660506,0.00024602,2]
[361844702,1747833039497,-430.0,0.00024657,2]
[361844703,1747833039506,-430.0,0.00024657,2]
[361844704,1747833039516,-430.0,0.00024657,2]
[361844705,1747833039526,-494.60247312,0.00024657,2]
[361844706,1747833039538,-264.01752688,0.00024657,2]
[361844707,1747833039548,-380.0,0.00024658,2]
[361844708,1747833039557,-1000.0,0.00024658,2]
[361844709,1747833039567,-999.0,0.00024658,2]
[361844710,1747833039577,-498.96569374,0.00024658,2]
[361844711,1747833039586,-695.24,0.00024663,5]
[361844712,1747833039595,-2885.23963191,0.000247,7]
[361844713,1747833039608,-9837.16085619,0.000247,7]
[361844731,1747833046603,-10650.0,0.000247,7]
[361844732,1747833046617,-1992.25656816,0.000247,7]
[361844733,1747833046687,-37999.99573722,0.000247,7]
[361844734,1747833046716,-490.66197027,0.000247,7]
[361844739,1747833048464,-5000.0,0.00024453,2]
[361844740,1747833048474,-20464.51505,0.000247,7]
[361844741,1747833048521,-4566.89689343,0.000247,7]
[361844742,1747833048536,-927.52314604,0.000247,7]
[361844743,1747833048635,-762.31070831,0.000247,7]
[361844744,1747833048720,-18795.93139418,0.000247,7]
[361844745,1747833048732,-4793.23660592,0.000247,7]
[361844747,1747833233475,220.955614,0.00013699,2]
[361844762,1747834221936,222.103117,0.00013699,2]
[361844815,1747834236670,-5000.0,0.0001978,2]
[361844817,1747834236680,-300.0,0.00019978,2]
[361844819,1747834236696,-300.0,0.00019979,2]
[361844821,1747834236706,-300.0,0.00019979,2]
[361844823,1747834236715,-300.0,0.00019979,2]
[361844825,1747834236725,-1200.0,0.00019979,2]
[361844827,1747834236734,-2029.78901585,0.0001998,2]
[361844857,1747834237726,-12813.3840853,0.0001998,2]
[361844858,1747834237739,-2418.07333417,0.0001998,2]
[361844859,1747834237749,-500.0,0.00019999,2]
[361844860,1747834237759,-500.0,0.00019999,2]
[361844861,1747834237769,-500.0,0.00019999,2]
[361844862,1747834237779,-500.0,0.00019999,2]
[361844863,1747834237789,-500.0,0.00019999,2]
[361844864,1747834237799,-269.84486432,0.00019999,2]
[361844865,1747834237808,-500.0,0.00019999,2]
[361844866,1747834237818,-221.36387853,0.00019999,2]
[361844867,1747834237829,-301.16573658,0.00019999,2]
[361844868,1747834237839,-500.0,0.00019999,2]
[361844869,1747834237848,-500.0,0.00019999,2]
[361844870,1747834237858,-500.0,0.00019999,2]
[361844871,1747834237867,-500.0,0.00019999,2]
[361844872,1747834237876,-500.0,0.00019999,2]
[361844873,1747834237886,-500.0,0.00019999,2]
[361844874,1747834237895,-500.0,0.00019999,2]
[361844875,1747834237905,-500.0,0.00019999,2]
[361844876,1747834237915,-500.0,0.00019999,2]
[361844877,1747834237927,-500.0,0.00019999,2]
[361844878,1747834237937,-500.0,0.00019999,2]
[361844879,1747834237947,-500.0,0.00019999,2]
[361844880,1747834237956,-500.0,0.00019999,2]
[361844881,1747834237966,-500.0,0.00019999,2]
[361844882,1747834237976,-500.0,0.00019999,2]
[361844883,1747834237985,-500.0,0.00019999,2]
[361844884,1747834237996,-500.0,0.00019999,2]
[361844885,1747834238007,-500.0,0.00019999,2]
[361844886,1747834238017,-456.42501296,0.00019999,2]
[361844887,1747834238026,-500.0,0.00019999,2]
[361844888,1747834238035,-500.0,0.00019999,2]
[361844889,1747834238045,-500.0,0.00019999,2]
[361844890,1747834238055,-238.87193514,0.00019999,2]
[361844891,1747834238066,-6207.87347887,0.0002,2]
[361844892,1747834238079,-620.79606626,0.0002,2]
[361844893,1747834238091,-739.46503404,0.0002,2]
[361844894,1747834238103,-813.06142564,0.0002,2]
[361844895,1747834238115,-522.71292882,0.0002,2]
[361844899,1747834240113,-16172.96805205,0.0002,2]
[361844900,1747834240124,-222.103117,0.00020187,2]
[361844901,1747834240133,-160.0,0.00020681,2]
[361844902,1747834240143,-422.71322487,0.00020726,2]
[361844903,1747834240152,-160.0,0.00020733,2]
[361844904,1747834240162,-212.41679935,0.00020745,2]
[361844905,1747834240172,-201.67347054,0.000209,4]
[361844906,1747834240181,-800.0,0.00021,2]
[361844907,1747834240191,-201.67347045,0.00021257,4]
[361844908,1747834240202,-500.0,0.00021327,2]
[361844909,1747834240212,-201.67347045,0.00021614,5]
[361844910,1747834240222,-420.0,0.00021755,2]
[361844911,1747834240231,-1501.17402631,0.0002178,2]
[361844912,1747834240240,-201.67347045,0.00021971,6]
[361844913,1747834240249,-267.0683457,0.00022111,2]
[361844914,1747834240259,-300.671032,0.00022117,2]
[361844915,1747834240269,-201.67347045,0.00022329,7]
[361844916,1747834240278,-5000.0,0.00022471,2]
[361844917,1747834240287,-5000.0,0.00022471,2]
[361844918,1747834240296,-290.29435697,0.00022471,2]
[361844919,1747834240305,-500.0,0.00022659,2]
[361844920,1747834240315,-500.0,0.00022659,2]
[361844921,1747834240324,-332.12731793,0.00022659,2]
[361844922,1747834240334,-500.0,0.00022659,2]
[361844923,1747834240343,-500.0,0.00022659,2]
[361844924,1747834240354,-615.68872253,0.00022659,2]
[361844925,1747834240365,-298.7853608,0.00022659,2]
[361844926,1747834240375,-500.0,0.00022659,2]
[361844927,1747834240385,-500.0,0.00022659,2]
[361844928,1747834240394,-500.0,0.00022659,2]
[361844929,1747834240404,-500.0,0.00022659,2]
[361844930,1747834240413,-500.0,0.00022659,2]
[361844931,1747834240423,-500.0,0.00022659,2]
[361844932,1747834240432,-500.0,0.00022659,2]
[361844933,1747834240441,-500.0,0.00022659,2]
[361844934,1747834240451,-500.0,0.00022659,2]
[361844935,1747834240460,-500.0,0.00022659,2]
[361844936,1747834240470,-51173.76284577,0.0002266,2]
[361844937,1747834240480,-201.67347045,0.00022686,7]
[361844938,1747834240489,-227.52346696,0.00022739,2]
[361844939,1747834240499,-1153.88,0.00023,2]
[361844940,1747834240509,-201.67347045,0.00023043,8]
[361844941,1747834240519,-430.0,0.00023286,2]
[361844942,1747834240530,-510.27743128,0.00023345,2]
[361844943,1747834240539,-201.67347045,0.000234,9]
[361844944,1747834240548,-500.0,0.00023519,2]
[361844945,1747834240558,-430.0,0.0002356,2]
[361844946,1747834240568,-587.0,0.0002369,2]
[361844947,1747834240579,-201.67347045,0.00023757,9]
[361844948,1747834240589,-430.0,0.00023834,2]
[361844949,1747834240599,-624.52179193,0.00023942,2]
[361844950,1747834240608,-345.22749098,0.00024,2]
[361844951,1747834240618,-500.0,0.00024019,2]
[361844952,1747834240628,-430.0,0.00024108,2]
[361844953,1747834240638,-169.707,0.00024114,6]
[361844954,1747834240648,-201.67347045,0.00024114,10]
[361844955,1747834240658,-624.52179193,0.00024341,2]
[361844956,1747834240668,-500.0,0.00024374,2]
[361844957,1747834240678,-430.0,0.00024382,2]
[361844958,1747834240688,-624.52179195,0.00024467,2]
[361844959,1747834240698,-201.67347045,0.00024471,11]
[361844960,1747834240708,-365.1296499,0.00024521,2]
[361844961,1747834240718,-363.5769684,0.00024521,2]
[361844962,1747834240728,-363.5769684,0.00024521,2]
[361844963,1747834240737,-363.5769684,0.00024521,2]
[361844964,1747834240747,-363.5769684,0.00024521,2]
[361844965,1747834240756,-500.0,0.00024573,2]
[361844966,1747834240766,-482.994456,0.00024602,2]
[361844967,1747834240776,-430.0,0.00024656,2]
[361844968,1747834240785,-430.0,0.00024657,2]
[361844969,1747834240795,-430.0,0.00024657,2]
[361844970,1747834240804,-430.0,0.00024657,2]
[361844971,1747834240814,-430.0,0.00024657,2]
[361844972,1747834240824,-430.0,0.00024657,2]
[361844973,1747834240834,-430.0,0.00024657,2]
[361844974,1747834240843,-344.80725714,0.00024657,2]
[361844975,1747834240853,-349.27598562,0.00024658,2]
[361844976,1747834240863,-430.0,0.00024697,2]
[361844977,1747834240872,-9541.94,0.00024697,2]
[361844978,1747834240882,-727.01,0.00024699,2]
[361844979,1747834240891,-4175.40196871,0.000247,2]
[361844980,1747834240901,-2350.41882383,0.000247,3]
[361844981,1747834240910,-409.2229085,0.000247,7]
[361845003,1747834244163,-53120.28495213,0.000247,7]
[361845005,1747834244175,-13668.34459586,0.000247,7]
[361845018,1747834246122,-430.0,0.000247,7]
[361845019,1747834246183,-141488.86012267,0.000247,7]
[361845033,1747834826347,10000.0,0.0002,120]
[361845034,1747834839546,10000.0,0.0002,120]
[361845035,1747834849175,10000.0,0.0002,120]
[361845036,1747834856934,10000.0,0.0002,120]
[361845037,1747834864656,10000.0,0.0002,120]
[361845038,1747834872182,10000.0,0.0002,120]
[361845039,1747834879998,10000.0,0.0002,120]
[361845044,1747835165871,194.27410137,0.000189,2]
[361845045,1747835248873,217.14941,0.00013699,2]
[361845047,1747835384321,5000.0,0.0002,2]
[361845048,1747835400139,5000.0,0.0002,2]
[361845049,1747835416002,5000.0,0.0002,2]
[361845050,1747835431323,2322.82809735,0.0002,2]
[361845139,1747835436501,-217.14941,0.00020187,2]
[361845140,1747835436511,-160.0,0.000211,2]
[361845141,1747835436521,-894.64583333,0.000211,2]
[361845142,1747835436531,-300.0,0.00021112,2]
[361845143,1747835436541,-300.0,0.00021112,2]
[361845144,1747835436550,-300.0,0.00021112,2]
[361845145,1747835436572,-500.0,0.00021327,2]
[361845146,1747835436583,-430.0,0.00021917,2]
[361845147,1747835436592,-270.446956,0.00022128,2]
[361845148,1747835436602,-1200.0,0.0002219,2]
[361845149,1747835436612,-430.0,0.00022191,2]
[361845150,1747835436622,-429.2054529,0.00022209,2]
[361845151,1747835436631,-362.01231556,0.00022465,2]
[361845152,1747835436641,-160.0,0.00022475,2]
[361845153,1747835436651,-422.71322487,0.00022486,2]
[361845154,1747835436661,-300.0,0.00022739,2]
[361845155,1747835436671,-300.0,0.00022913,2]
[361845156,1747835436681,-182.6733535,0.00022914,2]
[361845157,1747835436691,-300.0,0.00022963,2]
[361845158,1747835436701,-1038.49,0.00023,2]
[361845160,1747835436711,-169.707,0.00023217,3]
[361845161,1747835436720,-500.56000607,0.00023218,2]
[361845163,1747835436730,-430.0,0.00023218,2]
[361845164,1747835436740,-176.801964,0.0002322,3]
[361845166,1747835436749,-500.0,0.00023519,2]
[361845167,1747835436759,-194.27410137,0.000239,2]
[361845168,1747835436769,-201.67347045,0.000239,10]
[361845169,1747835436779,-201.67347045,0.00024567,11]
[361845170,1747835436788,-434.69501,0.00024602,2]
[361845171,1747835436798,-430.0,0.00024689,2]
[361845172,1747835436808,-215.0,0.0002469,120]
[361845173,1747835436818,-215.0,0.0002469,120]
[361845174,1747835436828,-155.0,0.0002469,120]
[361845175,1747835436838,-155.0,0.0002469,120]
[361845176,1747835436847,-696.72,0.00024697,2]
[361845177,1747835436857,-384.04722366,0.00024698,2]
[361845178,1747835436867,-255.68508184,0.00024698,2]
[361845179,1747835436876,-500.0,0.00024698,2]
[361845180,1747835436886,-415.43021502,0.00024698,2]
[361845181,1747835436895,-500.0,0.00024699,2]
[361845182,1747835436905,-500.0,0.00024699,2]
[361845183,1747835436914,-500.0,0.00024699,2]
[361845184,1747835436923,-500.0,0.00024699,2]
[361845185,1747835436933,-500.0,0.00024699,2]
[361845186,1747835437173,-522.98226109,0.00024699,2]
[361845187,1747835437184,-500.0,0.00024699,2]
[361845188,1747835437194,-500.0,0.00024699,2]
[361845189,1747835437203,-500.0,0.00024699,2]
[361845190,1747835437213,-500.0,0.00024699,2]
[361845191,1747835437222,-500.0,0.00024699,2]
[361845192,1747835437231,-530.98210577,0.00024699,2]
[361845193,1747835437241,-500.0,0.00024699,2]
[361845194,1747835437251,-500.0,0.00024699,2]
[361845195,1747835437261,-500.0,0.00024699,2]
[361845196,1747835437270,-650.0,0.00024699,2]
[361845197,1747835437279,-500.0,0.00024699,2]
[361845198,1747835437288,-244.49318993,0.00024699,2]
[361845199,1747835437298,-582.48912255,0.00024699,2]
[361845200,1747835437311,-9187.61,0.00024699,2]
[361845201,1747835437320,-22849.27105798,0.000247,7]
[361845202,1747835437333,-518.7636901,0.000247,7]
[361845230,1747835437928,-300.0,0.000247,7]
[361845656,1747835715182,35217.65911,0.0002,2]
[361845661,1747836203249,5000.0,0.0002,2]
[361845662,1747836219692,4500.692465,0.0002,2]
[361845663,1747836345617,150.0,0.000189,2]
[361845664,1747836371393,150.0,0.000189,2]
[361845665,1747836371828,237.395023,0.00013699,2]
[361846147,1747836638041,-237.395023,0.00020187,2]
[361846150,1747836638051,-212.41679935,0.00020369,2]
[361846152,1747836638062,-300.0,0.00020581,2]
[361846154,1747836638072,-300.0,0.00020581,2]
[361846156,1747836638082,-300.0,0.00020581,2]
[361846158,1747836638091,-1200.0,0.00020581,2]
[361846160,1747836638101,-500.0,0.00020582,2]
[361846162,1747836638110,-500.0,0.00020582,2]
[361846164,1747836638122,-2070.0,0.00020582,2]
[361846166,1747836638132,-150.0,0.00021,2]
[361846168,1747836638143,-500.0,0.00021327,2]
[361846170,1747836638153,-7219.1101422,0.00021339,2]
[361846172,1747836638163,-3988.9084646,0.00021499,2]
[361846174,1747836638174,-208.29677975,0.000219,6]
[361846176,1747836638184,-430.0,0.00021917,2]
[361846178,1747836638194,-405.02,0.00021917,2]
[361846180,1747836638203,-160.0,0.00022,2]
[361846182,1747836638213,-208.29677955,0.00022038,6]
[361846184,1747836638222,-208.29677955,0.00022176,6]
[361846186,1747836638232,-430.0,0.00022191,2]
[361846188,1747836638241,-160.0,0.00022192,7]
[361846190,1747836638251,-422.71322487,0.00022273,2]
[361846192,1747836638260,-160.0,0.00022279,2]
[361846194,1747836638270,-404.0,0.00022284,2]
[361846195,1747836638280,-512.25,0.00022296,2]
[361846197,1747836638293,-430.0,0.00022296,2]
[361846199,1747836638302,-208.29677955,0.00022314,7]
[361846201,1747836638312,-420.0,0.00022397,2]
[361846203,1747836638322,-420.0,0.00022397,2]
[361846205,1747836638331,-208.29677955,0.00022452,7]
[361846207,1747836638341,-430.0,0.00022465,2]
[361846209,1747836638350,-480.0,0.00022504,2]
[361846211,1747836638360,-512.25,0.0002257,2]
[361846213,1747836638372,-430.0,0.0002257,2]
[361846216,1747836638392,-208.29677955,0.0002259,7]
[361846218,1747836638406,-430.0,0.00022657,2]
[361846220,1747836638416,-208.29677955,0.00022728,7]
[361846223,1747836638426,-430.0,0.00022739,2]
[361846225,1747836638436,-512.25,0.00022844,2]
[361846227,1747836638446,-430.0,0.00022844,2]
[361846229,1747836638456,-208.29677955,0.00022866,8]
[361846230,1747836638466,-4121.1973239,0.000229,2]
[361846233,1747836638479,-536.9764501,0.000229,2]
[361846706,1747836644208,-343.20503195,0.000229,2]
[361846707,1747836644218,-709.19934261,0.000229,2]
[361846708,1747836644227,-751.99396435,0.000229,2]
[361847921,1747837363595,312.0,0.0002,60]
[361847948,1747837597873,213.65552,0.00013699,2]
[361847965,1747837694553,167.26767741,0.00010618,2]
[361847966,1747837719839,1000.0,0.0001,2]
[361847967,1747837725752,40029.81339313,0.0001,2]
[361847968,1747837725781,12079.85225771,0.0002,2]
[361847969,1747837774142,-213.65552,0.00020187,2]
[361847970,1747837774169,-785.19081326,0.00020884,2]
[361847992,1747837832448,-160.0,0.00021285,2]
[361847995,1747837832459,-160.0,0.00021289,2]
[361847997,1747837832469,-500.0,0.00021327,2]
[361848000,1747837832478,-35.4,0.00021711,2]
[361848062,1747837838189,-199.794206,0.00021711,2]
[361848063,1747837838200,-300.0,0.00021846,2]
[361848064,1747837838210,-300.0,0.00021846,2]
[361848065,1747837838220,-9947.205794,0.00021847,2]
[361848067,1747837838332,-2695.79617499,0.00021847,2]
[361848068,1747837838343,-894.64583333,0.00021852,2]
[361848070,1747837838353,-160.0,0.00022,2]
[361848072,1747837838363,-624.52179193,0.00022057,2]
[361848074,1747837838373,-422.71322487,0.00022207,2]
[361848075,1747837838383,-383.02910688,0.00022244,2]
[361848076,1747837838395,-89.30089312,0.00022244,2]
[361848077,1747837838405,-430.0,0.00022245,2]
[361848078,1747837838415,-430.0,0.00022255,2]
[361848079,1747837838425,-477.20748992,0.00022256,2]
[361848080,1747837838434,-471.97113341,0.00022256,2]
[361848081,1747837838444,-477.90158132,0.00022256,2]
[361848082,1747837838454,-481.77908186,0.00022256,2]
[361848083,1747837838464,-1093.82,0.00022256,2]
[361848084,1747837838474,-430.0,0.00022256,2]
[361848085,1747837838484,-430.0,0.00022256,2]
[361848086,1747837838494,-430.0,0.00022256,2]
[361848087,1747837838503,-79.42389847,0.00022289,2]
[361848088,1747837838516,-265.72179999,0.00022289,2]
[361848089,1747837838526,-430.0,0.00022289,2]
[361848090,1747837838537,-430.0,0.00022289,2]
[361848091,1747837838547,-899.25,0.00022295,2]
[361848092,1747837838558,-430.0,0.00022295,2]
[361848093,1747837838568,-624.52179193,0.00022303,2]
[361848094,1747837838581,-472.33,0.00022518,2]
[361848095,1747837838591,-430.0,0.00022519,2]
[361848096,1747837838600,-430.0,0.00022529,2]
[361848097,1747837838610,-1093.82,0.0002253,2]
[361848098,1747837838620,-430.0,0.0002253,2]
[361848099,1747837838629,-160.0,0.00022533,2]
[361848100,1747837838639,-430.0,0.00022563,2]
[361848101,1747837838648,-430.0,0.00022563,2]
[361848102,1747837838658,-899.25,0.00022569,2]
[361848103,1747837838668,-430.0,0.00022569,2]
[361848104,1747837838679,-404.0,0.00022574,2]
[361848105,1747837838689,-624.52179195,0.00022594,2]
[361848106,1747837838699,-193.0,0.000226,5]
[361848107,1747837838708,-6831.39278961,0.00022737,2]
[361848346,1747837846405,-10770.55453726,0.00022737,2]
[361848683,1747837859352,2582.0,0.0002,2]
[361849002,1747838730261,192.289968,0.00013699,2]
[361849010,1747838945888,2210.20918674,0.0002,2]
[361849649,1747839040838,-192.289968,0.00020187,2]
[361849651,1747839040848,-206.382895,0.00021246,2]
[361849653,1747839040857,-500.0,0.00021327,2]
[361849655,1747839040867,-472.0,0.00022,2]
[361849656,1747839040876,-160.0,0.00022,2]
[361849658,1747839040885,-160.0,0.00022167,2]
[361849660,1747839040894,-894.64583333,0.00022172,2]
[361849662,1747839040904,-160.0,0.00022173,2]
[361849663,1747839040912,-300.0,0.00022253,2]
[361849665,1747839040922,-430.0,0.00022253,2]
[361849667,1747839040931,-47444.68130227,0.00022254,2]
[361849937,1747839043858,-2555.31869773,0.00022254,2]
[361849939,1747839043868,-430.0,0.00022254,2]
[361849941,1747839043878,-450.88,0.00022254,2]
[361849943,1747839043888,-181.6,0.00022254,2]
[361849945,1747839043899,-430.0,0.00022254,2]
[361849947,1747839043909,-430.0,0.00022254,2]
[361849949,1747839043919,-4461.51929122,0.00022517,3]
[361849952,1747839043929,-1092.67,0.00022517,2]
[361849953,1747839043939,-3922.19,0.00022517,2]
[361849956,1747839043948,-430.0,0.00022517,2]
[361849958,1747839043958,-1158.94,0.00022517,2]
[361849959,1747839043970,-824.31,0.00022517,2]
[361849961,1747839043980,-430.0,0.00022517,2]
[361849963,1747839043990,-430.0,0.00022517,2]
[361849965,1747839044000,-157.323,0.00022518,2]
[361849967,1747839044011,-529.10878307,0.00022527,2]
[361849968,1747839044021,-430.0,0.00022528,2]
[361849969,1747839044031,-450.88,0.00022528,2]
[361849970,1747839044041,-430.0,0.00022528,2]
[361849971,1747839044050,-422.71322487,0.00022631,2]
[361849972,1747839044060,-463.5,0.00022735,15]
[361849973,1747839044069,-300.0,0.00022739,2]
[361849974,1747839044079,-300.0,0.00022739,2]
[361849975,1747839044089,-1092.67,0.00022791,2]
[361849976,1747839044099,-3922.19,0.00022791,2]
[361849977,1747839044110,-1158.94,0.00022791,2]
[361849978,1747839044120,-824.31,0.00022791,2]
[361849979,1747839044130,-430.0,0.00022791,2]
[361849980,1747839044140,-430.0,0.00022791,2]
[361849981,1747839044150,-365.1296499,0.000228,2]
[361849982,1747839044160,-363.5769684,0.000228,2]
[361849984,1747839044170,-363.5769684,0.000228,2]
[361849985,1747839044179,-363.5769684,0.000228,2]
[361849988,1747839044189,-363.5769684,0.000228,2]
[361849990,1747839044201,-317.36,0.00022802,2]
[361849992,1747839044211,-450.88,0.00022802,2]
[361849994,1747839044224,-430.0,0.00022802,2]
[361849995,1747839044234,-300.0,0.00022803,2]
[361849998,1747839044244,-233.750677,0.000229,7]
[361850000,1747839044254,-151.0,0.000229,7]
[361850002,1747839044265,-151.0,0.000229,7]
[361850004,1747839044275,-151.0,0.000229,7]
[361850006,1747839044285,-151.0,0.000229,7]
[361850008,1747839044295,-166.560343,0.000229,7]
[361850010,1747839044305,-151.0,0.000229,7]
[361850012,1747839044316,-151.0,0.000229,7]
[361850014,1747839044326,-151.0,0.000229,7]
[361850016,1747839044336,-151.0,0.000229,7]
[361850018,1747839044347,-151.0,0.000229,7]
[361850020,1747839044356,-155.670569,0.000229,7]
[361850022,1747839044367,-155.670569,0.000229,7]
[361850024,1747839044376,-3334.2525373,0.000229,2]
[361850026,1747839044387,-153.424432,0.000229,7]
[361850028,1747839044398,-292.45747809,0.000229,2]
[361850030,1747839044408,-236.118924,0.000229,7]
[361850032,1747839044419,-151.0,0.000229,7]
[361850034,1747839044429,-151.0,0.000229,7]
[361850036,1747839044439,-151.0,0.000229,7]
[361850038,1747839044449,-151.0,0.000229,7]
[361850040,1747839044459,-152.235506,0.000229,7]
[361850042,1747839044475,-151.0,0.000229,7]
[361850044,1747839044488,-229.54543659,0.000229,8]
[361850046,1747839044498,-164.341991,0.000229,2]
[361850048,1747839044509,-164.341991,0.000229,2]
[361850050,1747839044520,-151.0,0.000229,7]
[361850052,1747839044530,-152.506462,0.000229,7]
[361850054,1747839044540,-160.316743,0.000229,7]
[361850056,1747839044550,-151.0,0.000229,7]
[361850058,1747839044560,-151.0,0.000229,7]
[361850060,1747839044572,-151.0,0.000229,7]